bitfinex-derivatives/quotes_SOLF0:USTF0_20260314
["timestamp","ask_amount","ask_price","bid_price","bid_amount"]
[1773489558110,9.1756791,86.917,86.87,4.58997061]
[1773489558409,9.1756791,86.916,86.87,4.58997061]
[1773489558610,9.1756791,86.915,86.87,4.58997061]
[1773489558908,9.1756791,86.914,86.87,4.58997061]
[1773489559113,9.1756791,86.913,86.87,4.58997061]
[1773489559409,9.1756791,86.912,86.87,4.58997061]
[1773489559608,3.12702577,86.92,86.87,4.58997061]
[1773489559809,9.17164992,86.919,86.87,4.58997061]
[1773489560010,9.17164992,86.918,86.87,4.58997061]
[1773489560312,9.17164992,86.917,86.87,4.58997061]
[1773489560512,9.17164992,86.916,86.87,4.58997061]
[1773489560713,9.17164992,86.915,86.87,4.58997061]
[1773489560914,9.17164992,86.914,86.87,4.58997061]
[1773489561215,9.17164992,86.913,86.876,4.59012425]
[1773489561408,3.12702577,86.92,86.876,4.59012425]
[1773489561614,9.17105264,86.919,86.876,4.59012425]
[1773489561914,9.17105264,86.918,86.878,4.59013185]
[1773489562211,9.17105264,86.917,86.878,4.59013185]
[1773489562511,9.17105264,86.916,86.878,4.59013185]
[1773489562711,9.17105264,86.915,86.878,4.59013185]
[1773489562912,9.17105264,86.914,86.878,4.59013185]
[1773489563114,9.17105264,86.913,86.878,4.59013185]
[1773489563312,10.351,86.929,86.878,4.59013185]
[1773489563611,10.352,86.924,86.878,4.59013185]
[1773489563814,9.17068862,86.923,86.878,4.59013185]
[1773489564015,9.17068862,86.922,86.878,4.59013185]
[1773489564209,9.17068862,86.921,86.878,4.59013185]
[1773489564405,9.17068862,86.92,86.878,4.59013185]
[1773489564713,9.17068862,86.919,86.878,4.59013185]
[1773489564913,9.17068862,86.918,86.878,4.59013185]
[1773489565114,9.17068862,86.917,86.878,4.59013185]
[1773489565314,9.17068862,86.916,86.878,4.59013185]
[1773489565516,9.17068862,86.915,86.878,4.59013185]
[1773489565814,9.17068862,86.914,86.878,4.59013185]
[1773489566014,9.17068862,86.913,86.878,4.59013185]
[1773489566215,10.352,86.924,86.878,4.59013185]
[1773489566415,9.17021818,86.923,86.878,4.59013185]
[1773489566617,9.17021818,86.922,86.878,4.59013185]
[1773489566916,9.17021818,86.921,86.878,4.59013185]
[1773489567115,9.17021818,86.92,86.878,4.59013185]
[1773489567313,9.17021818,86.919,86.878,4.59013185]
[1773489567616,9.17021818,86.918,86.878,4.59013185]
[1773489567815,9.17021818,86.917,86.878,4.59013185]
[1773489568015,9.17021818,86.916,86.878,4.59013185]
[1773489568215,10.352,86.924,86.878,4.59013185]
[1773489568416,9.16997437,86.923,86.878,4.59013185]
[1773489568617,9.16997437,86.922,86.878,4.59013185]
[1773489568817,9.16997437,86.921,86.878,4.59013185]
[1773489569018,9.16997437,86.92,86.878,4.59013185]
[1773489569213,9.16997437,86.919,86.878,4.59013185]
[1773489569414,9.16997437,86.918,86.878,4.59013185]
[1773489569616,10.352,86.924,86.878,4.59013185]
[1773489569816,10.352,86.922,86.878,4.59013185]
[1773489570016,9.16992759,86.921,86.878,4.59013185]
[1773489570216,9.16992759,86.92,86.878,4.59013185]
[1773489570417,9.16992759,86.919,86.878,4.59013185]
[1773489570722,9.16992759,86.918,86.878,4.59013185]
[1773489571022,10.352,86.922,86.878,4.59013185]
[1773489571217,9.1698827,86.921,86.878,4.59013185]
[1773489571421,9.1698827,86.92,86.878,4.59013185]
[1773489571716,9.1698827,86.919,86.878,4.59013185]
[1773489571916,9.1698827,86.918,86.878,4.59013185]
[1773489572116,10.352,86.922,86.878,4.59013185]
[1773489572318,9.16959913,86.921,86.878,4.59013185]
[1773489572511,9.16959913,86.92,86.878,4.59013185]
[1773489572712,9.16959913,86.919,86.878,4.59013185]
[1773489572917,10.352,86.922,86.878,4.59013185]
[1773489578328,10.352,86.92,86.878,4.59013185]
[1773489578635,9.16908616,86.919,86.869,4.65478614]
[1773489578835,3.12702577,86.91,86.869,4.65478614]
[1773489579033,9.16908616,86.909,86.869,4.65478614]
[1773489579337,9.16908616,86.908,86.869,4.65478614]
[1773489579539,10.353,86.915,86.869,4.65478614]
[1773489579738,9.17057163,86.914,86.869,4.65478614]
[1773489579936,9.17057163,86.913,86.869,4.65478614]
[1773489580135,9.17057163,86.912,86.869,4.65478614]
[1773489580338,9.17057163,86.911,86.869,4.65478614]
[1773489580536,10.352,86.921,86.871,4.65977859]
[1773489580733,9.17041293,86.92,86.871,4.65977859]
[1773489580933,10.352,86.921,86.871,4.65977859]
[1773489581227,9.17041293,86.92,86.871,4.65977859]
[1773489581432,10.352,86.921,86.871,4.65977859]
[1773489581630,9.17178985,86.92,86.872,4.65977873]
[1773489581833,10.352,86.921,86.872,4.65977873]
[1773489582031,9.17179375,86.92,86.872,4.65977873]
[1773489582333,9.17306653,86.919,86.872,4.65977873]
[1773489582538,10.352,86.921,86.872,4.65977873]
[1773489582838,9.17306696,86.92,86.872,4.65977873]
[1773489583137,9.17306696,86.919,86.872,4.65977873]
[1773489583333,13.47907731,86.93,86.876,4.66175583]
[1773489583536,9.1745066,86.929,86.876,4.66175583]
[1773489583841,9.1745066,86.928,86.876,4.66175583]
[1773489584138,9.1745066,86.927,86.876,4.66175583]
[1773489584334,9.1745066,86.926,86.876,4.66175583]
[1773489584642,9.1745066,86.925,86.878,4.66114074]
[1773489584840,9.1745066,86.924,86.878,4.66114074]
[1773489585041,9.1745066,86.923,86.878,4.66114074]
[1773489585339,9.1745066,86.922,86.878,4.66114074]
[1773489585542,9.1745066,86.921,86.878,4.66114074]
[1773489585743,36.22,86.95,86.839,36.22]
[1773489585744,10.35,86.937,86.881,4.66121235]
[1773489585944,9.17521069,86.936,86.881,4.66121235]
[1773489586134,9.17521069,86.935,86.881,4.66121235]
[1773489586337,9.17521069,86.934,86.881,4.66121235]
[1773489586640,9.17521069,86.933,86.883,4.66121235]
[1773489586836,10.35,86.937,86.883,4.66121235]
[1773489586837,9.17521069,86.932,86.883,4.66121235]
[1773489587037,9.17521069,86.931,86.883,4.66121235]
[1773489587238,9.17521069,86.93,86.883,4.66121235]
[1773489587432,9.17521069,86.929,86.885,4.66457381]
[1773489587643,9.17521069,86.928,86.885,4.66457381]
[1773489587842,10.35,86.937,86.885,4.66457381]
[1773489588042,9.17427521,86.936,86.885,4.66457381]
[1773489588341,9.17427521,86.935,86.885,4.66457381]
[1773489588640,9.17427521,86.934,86.885,4.66457381]
[1773489588840,9.17427521,86.933,86.885,4.66457381]
[1773489589040,9.17427521,86.932,86.885,4.66457381]
[1773489589242,9.17427521,86.931,86.885,4.66457381]
[1773489589442,9.17427521,86.93,86.885,4.66457381]
[1773489589643,9.17427521,86.929,86.885,4.66457381]
[1773489589946,10.35,86.937,86.885,4.66457381]
[1773489590244,9.17208468,86.936,86.885,4.66457381]
[1773489590442,9.17208468,86.935,86.885,4.66457381]
[1773489590646,9.17208468,86.934,86.885,4.66457381]
[1773489590944,9.17208468,86.933,86.885,4.66457381]
[1773489591143,9.17208468,86.932,86.885,4.66457381]
[1773489591345,9.17208468,86.931,86.889,4.66454662]
[1773489591540,9.17208468,86.93,86.889,4.66454662]
[1773489591841,9.17208468,86.929,86.889,4.66454662]
[1773489592142,10.35,86.937,86.889,4.66454662]
[1773489592340,9.16978979,86.936,86.889,4.66454662]
[1773489592541,9.16978979,86.935,86.889,4.66454662]
[1773489592742,9.16978979,86.934,86.889,4.66454662]
[1773489592941,9.16978979,86.933,86.889,4.66454662]
[1773489593134,9.16978979,86.932,86.889,4.66454662]
[1773489593340,9.16978979,86.931,86.889,4.66454662]
[1773489593640,9.16978979,86.93,86.889,4.66454662]
[1773489593840,9.16978979,86.929,86.889,4.66454662]
[1773489594144,10.35,86.937,86.889,4.66454662]
[1773489594441,9.16871738,86.936,86.889,4.66454662]
[1773489594641,9.16871738,86.935,86.889,4.66454662]
[1773489594942,9.16871738,86.934,86.889,4.66454662]
[1773489595142,9.16871738,86.933,86.889,4.66454662]
[1773489595342,9.16871738,86.932,86.889,4.66454662]
[1773489595641,9.16871738,86.931,86.889,4.66454662]
[1773489595842,9.16871738,86.93,86.889,4.66454662]
[1773489596042,9.16871738,86.929,86.889,4.66454662]
[1773489596342,9.16871738,86.928,86.889,4.66454662]
[1773489596641,10.35,86.937,86.889,4.66454662]
[1773489596837,9.16781502,86.936,86.889,4.66454662]
[1773489597040,9.16781502,86.935,86.889,4.66454662]
[1773489597339,9.16781502,86.934,86.889,4.66454662]
[1773489597541,9.16781502,86.933,86.889,4.66454662]
[1773489597745,9.16781502,86.932,86.889,4.66454662]
[1773489597944,9.16781502,86.931,86.889,4.66454662]
[1773489598146,9.16781502,86.93,86.889,4.66454662]
[1773489598443,9.16781502,86.929,86.889,4.66454662]
[1773489598642,10.35,86.937,86.889,4.66454662]
[1773489598844,10.351,86.935,86.889,4.66454662]
[1773489599138,9.16697287,86.934,86.889,4.66454662]
[1773489599344,9.16697287,86.933,86.889,4.66454662]
[1773489599544,9.16697287,86.932,86.889,4.66454662]
[1773489599744,9.16697287,86.931,86.889,4.66454662]
[1773489599945,10.351,86.928,86.889,4.66454662]
[1773489600348,3.12807731,86.9,86.847,4.74365543]
[1773489600547,3.12807731,86.87,86.815,4.74365543]
[1773489600846,3.12807731,86.89,86.831,4.74601157]
[1773489601046,9.17089819,86.889,86.831,4.74601157]
[1773489601243,3.12807731,86.91,86.841,4.74601157]
[1773489601444,9.15717885,86.909,86.841,4.74601157]
[1773489601644,3.12807731,86.9,86.841,4.74601157]
[1773489601844,9.15717885,86.899,86.841,4.74601157]
[1773489602046,9.15717885,86.898,86.841,4.74601157]
[1773489602245,3.12807731,86.9,86.841,4.74601157]
[1773489602450,9.1546087,86.899,86.841,4.74601157]
[1773489602751,10.76209218,86.928,86.851,4.79986378]
[1773489602944,3.12807731,86.91,86.851,4.79986378]
[1773489603143,19.50785739,86.909,86.851,4.79986378]
[1773489603340,9.15385739,86.908,86.851,4.79986378]
[1773489603540,3.12807731,86.9,86.851,4.79986378]
[1773489603745,3.12807731,86.87,86.821,4.80051836]
[1773489604146,3.12807731,86.86,86.821,4.80051836]
[1773489604951,3.12807731,86.86,86.808,10.366]
[1773489605145,3.12807731,86.86,86.808,4.80057521]
[1773489607754,3.12807731,86.86,86.815,4.80339869]
[1773489608455,3.12807731,86.85,86.804,15.17293503]
[1773489608748,3.12807731,86.85,86.805,4.81134886]
[1773489608946,3.12807731,86.86,86.805,4.81134886]
[1773489610755,9.12770075,86.906,86.821,4.80045597]
[1773489610960,3.12807731,86.89,86.831,4.80045597]
[1773489611858,3.12807731,86.91,86.841,4.80161311]
[1773489612161,3.12807731,86.9,86.841,4.80161311]
[1773489613659,10.355,86.897,86.842,4.81250129]
[1773489613859,3.12807731,86.89,86.842,4.81250129]
[1773489615958,3.12807731,86.89,86.844,4.76616074]
[1773489616561,3.12807731,86.9,86.847,4.76616074]
[1773489616761,10.354,86.908,86.847,4.76616074]
[1773489617260,3.12807731,86.9,86.847,4.76616074]
[1773489617556,3.12807731,86.9,86.848,10.361]
[1773489617760,3.12807731,86.9,86.849,4.76747357]
[1773489620863,10.355,86.898,86.849,4.76747357]
[1773489622263,10.355,86.898,86.84,3.12807731]
[1773489622264,3.12807731,86.88,86.836,4.75344569]
[1773489623666,10.356,86.889,86.836,4.75344569]
[1773489626366,10.356,86.889,86.84,3.12807731]
[1773489626568,14.38886832,86.941,86.805,36.24]
[1773489626569,10.354,86.903,86.851,4.8237374]
[1773489629871,3.12807731,86.9,86.851,4.8237374]
[1773489631670,3.12807731,86.9,86.854,4.83341085]
[1773489635370,10.355,86.899,86.854,4.83341085]
[1773489636367,3.12807731,86.89,86.843,15.1847312]
[1773489636575,3.12807731,86.89,86.844,4.8237312]
[1773489637767,10.356,86.891,86.844,4.8237312]
[1773489638176,10.355,86.899,86.846,4.77019959]
[1773489639777,10.355,86.899,86.848,4.77084218]
[1773489640574,10.355,86.899,86.851,4.75453833]
[1773489641582,10.355,86.899,86.854,4.73952609]
[1773489654786,10.68702759,86.948,86.87,3.12870323]
[1773489654982,3.12870323,86.95,86.881,4.76073407]
[1773489654983,3.12870323,86.94,86.881,4.76073407]
[1773489655180,3.12870323,86.92,86.868,4.76073407]
[1773489655383,3.12870323,86.91,86.868,4.76073407]
[1773489656789,3.12870323,86.91,86.816,28.38439666]
[1773489656790,3.12870323,86.9,86.855,4.88715213]
[1773489658091,10.68702759,86.922,86.855,4.88715213]
[1773489658092,3.12870323,86.89,86.855,4.88715213]
[1773489659994,3.12870323,86.9,86.855,4.88715213]
[1773489660197,9.18918807,86.899,86.855,4.88715213]
[1773489660395,3.12870323,86.9,86.855,4.88715213]
[1773489660597,9.19016667,86.899,86.855,4.88715213]
[1773489660798,3.12870323,86.9,86.855,4.88715213]
[1773489661095,9.19016667,86.899,86.855,4.88715213]
[1773489661296,9.19173837,86.898,86.855,4.88715213]
[1773489661493,3.12870323,86.9,86.855,4.88715213]
[1773489661797,9.19173837,86.899,86.855,4.88715213]
[1773489661992,3.12870323,86.88,86.838,4.87336]
[1773489662194,9.1929001,86.879,86.838,4.87336]
[1773489662496,3.12870323,86.89,86.838,4.87336]
[1773489662691,9.1927101,86.889,86.838,4.87336]
[1773489662892,9.1927101,86.888,86.838,4.87336]
[1773489663097,9.1927101,86.887,86.838,4.87336]
[1773489663397,9.1927101,86.886,86.838,4.87336]
[1773489663697,10.357,86.879,86.838,4.87336]
[1773489665590,10.356,86.889,86.838,4.87336]
[1773489665792,3.12870323,86.88,86.838,4.87336]
[1773489668900,3.12870323,86.88,86.83,10.363]
[1773489668901,10.356,86.889,86.841,4.87788752]
[1773489670402,3.12870323,86.89,86.844,4.87660602]
[1773489675814,13.48470323,86.89,86.844,4.87660602]
[1773489678014,10.356,86.89,86.844,4.87660602]
[1773489678309,13.48470323,86.89,86.844,4.87660602]
[1773489678513,9.07849552,86.889,86.844,4.87660602]
[1773489678816,9.07849552,86.888,86.844,4.87660602]
[1773489679015,9.07849552,86.887,86.844,4.87660602]
[1773489679314,13.48470323,86.89,86.844,4.87660602]
[1773489679615,9.07807884,86.889,86.844,4.87660602]
[1773489679915,9.07807884,86.888,86.844,4.87660602]
[1773489680213,9.07807884,86.887,86.844,4.87660602]
[1773489680515,13.48470323,86.89,86.844,4.87660602]
[1773489680815,10.356,86.888,86.844,4.87660602]
[1773489681118,10.356,86.886,86.844,4.87660602]
[1773489681411,10.68702759,86.907,86.844,4.87660602]
[1773489681607,3.12870323,86.89,86.844,4.87660602]
[1773489683716,3.12870323,86.92,86.861,4.88205948]
[1773489684016,9.07619336,86.919,86.861,4.88205948]
[1773489684215,9.07619336,86.918,86.861,4.88205948]
[1773489684415,9.07619336,86.917,86.861,4.88205948]
[1773489684616,9.07619336,86.916,86.861,4.88205948]
[1773489684816,10.353,86.914,86.861,4.88205948]
[1773489685011,9.07619336,86.913,86.861,4.88205948]
[1773489685212,9.07619336,86.912,86.861,4.88205948]
[1773489685408,9.07619336,86.911,86.861,4.88205948]
[1773489685613,9.07619336,86.91,86.861,4.88205948]
[1773489685809,9.07619336,86.909,86.861,4.88205948]
[1773489686014,10.353,86.914,86.861,4.88205948]
[1773489686214,9.07537485,86.913,86.861,4.88205948]
[1773489686417,9.07537485,86.912,86.861,4.88205948]
[1773489686720,9.07537485,86.911,86.861,4.88205948]
[1773489686919,9.07537485,86.91,86.861,4.88205948]
[1773489687121,9.07537485,86.909,86.861,4.88205948]
[1773489687419,10.353,86.914,86.861,4.88205948]
[1773489687715,9.0751653,86.913,86.861,4.88205948]
[1773489687918,9.0751653,86.912,86.861,4.88205948]
[1773489688111,9.0751653,86.911,86.861,4.88205948]
[1773489688312,9.0751653,86.91,86.861,4.88205948]
[1773489688518,9.0751653,86.909,86.861,4.88205948]
[1773489688719,10.353,86.914,86.861,4.88205948]
[1773489688919,9.07506099,86.913,86.861,4.88205948]
[1773489689121,10.353,86.914,86.861,4.88205948]
[1773489689321,9.07397164,86.913,86.861,4.88205948]
[1773489689518,10.353,86.914,86.861,4.88205948]
[1773489689715,9.07397164,86.913,86.861,4.88205948]
[1773489689912,10.353,86.912,86.861,4.88205948]
[1773489691421,3.12870323,86.91,86.861,4.88205948]
[1773489697729,10.353,86.912,86.861,4.88205948]
[1773489698833,10.353,86.912,86.863,4.9014265]
[1773489701130,10.353,86.912,86.86,3.12870323]
[1773489701131,13.48070323,86.92,86.865,4.89315421]
[1773489701331,9.07157377,86.919,86.865,4.89315421]
[1773489701531,9.07157377,86.918,86.865,4.89315421]
[1773489701831,13.48070323,86.92,86.865,4.89315421]
[1773489701832,9.07157377,86.917,86.865,4.89315421]
[1773489702026,9.07157377,86.916,86.872,4.8933223]
[1773489702223,9.07157377,86.915,86.872,4.8933223]
[1773489702426,13.48070323,86.92,86.872,4.8933223]
[1773489702623,10.353,86.917,86.872,4.8933223]
[1773489702925,9.07113973,86.916,86.872,4.8933223]
[1773489703126,9.07113973,86.915,86.872,4.8933223]
[1773489703323,3.12870323,86.92,86.872,4.8933223]
[1773489703524,9.0707189,86.919,86.872,4.8933223]
[1773489703725,3.12794555,86.92,86.872,4.8933223]
[1773489703726,9.0707189,86.918,86.872,4.8933223]
[1773489703929,9.0707189,86.917,86.872,4.8933223]
[1773489704132,3.12794555,86.92,86.872,4.8933223]
[1773489704133,9.0707189,86.916,86.872,4.8933223]
[1773489704334,9.0707189,86.915,86.872,4.8933223]
[1773489704633,10.353,86.915,86.872,4.8933223]
[1773489705830,3.12794555,86.92,86.872,4.8933223]
[1773489706035,9.06492117,86.919,86.875,4.89315198]
[1773489706236,9.06492117,86.918,86.875,4.89315198]
[1773489706447,9.06492117,86.917,86.875,4.89315198]
[1773489706634,9.06492117,86.916,86.875,4.89315198]
[1773489706833,3.12794555,86.92,86.875,4.89315198]
[1773489707029,9.06449857,86.919,86.875,4.89315198]
[1773489707231,9.06449857,86.918,86.875,4.89315198]
[1773489707528,9.06449857,86.917,86.875,4.89315198]
[1773489707729,9.06449857,86.916,86.875,4.89315198]
[1773489707933,3.12794555,86.92,86.875,4.89315198]
[1773489708131,9.06427588,86.919,86.875,4.89315198]
[1773489708335,9.06427588,86.918,86.875,4.89315198]
[1773489708536,9.06427588,86.917,86.875,4.89315198]
[1773489708737,9.06427588,86.916,86.875,4.89315198]
[1773489708937,3.12794555,86.92,86.875,4.89315198]
[1773489709138,9.06449315,86.919,86.875,4.89315198]
[1773489709337,9.06449315,86.918,86.875,4.89315198]
[1773489709531,10.353,86.916,86.875,4.89315198]
[1773489710842,10.354,86.908,86.864,4.89091543]
[1773489718750,10.353,86.918,86.865,4.96209523]
[1773489718951,9.07361703,86.917,86.865,4.96209523]
[1773489719143,3.12794555,86.91,86.865,4.96209523]
[1773489719350,9.07361703,86.909,86.865,4.96209523]
[1773489719549,9.07361703,86.908,86.865,4.96209523]
[1773489719855,9.07361703,86.907,86.865,4.96209523]
[1773489720054,3.12794555,86.91,86.865,4.96209523]
[1773489720255,9.07498619,86.909,86.865,4.96209523]
[1773489720455,9.07498619,86.908,86.865,4.96209523]
[1773489720656,10.354,86.906,86.865,4.96209523]
[1773489721355,3.12794555,86.91,86.865,4.96209523]
[1773489721555,9.07817731,86.909,86.865,4.96209523]
[1773489721752,10.68702759,86.926,86.869,4.93084772]
[1773489721753,9.07817731,86.908,86.869,4.93084772]
[1773489721954,10.68702759,86.938,86.881,4.93084772]
[1773489722150,3.12794555,86.93,86.881,4.93084772]
[1773489722356,3.12794555,86.91,86.861,4.93084772]
[1773489723456,3.12794555,86.92,86.861,4.93084772]
[1773489723661,19.43030472,86.919,86.862,4.93623525]
[1773489723958,9.07830472,86.918,86.862,4.93623525]
[1773489724157,9.07830472,86.917,86.862,4.93623525]
[1773489724356,10.353,86.914,86.862,4.93623525]
[1773489724558,9.07830472,86.913,86.862,4.93623525]
[1773489724758,3.12794555,86.91,86.862,4.93623525]
[1773489725658,10.353,86.914,86.864,4.93650183]
[1773489725956,9.08313659,86.913,86.864,4.93650183]
[1773489726261,9.08313659,86.912,86.864,4.93650183]
[1773489726459,9.08313659,86.911,86.864,4.93650183]
[1773489726759,10.353,86.914,86.864,4.93650183]
[1773489726960,9.08625586,86.913,86.864,4.93650183]
[1773489727157,9.08625586,86.912,86.864,4.93650183]
[1773489727357,9.08625586,86.911,86.864,4.93650183]
[1773489727557,9.08625586,86.91,86.864,4.93650183]
[1773489727757,10.353,86.914,86.864,4.93650183]
[1773489727958,9.08878274,86.913,86.866,4.95412002]
[1773489728158,9.08878274,86.912,86.866,4.95412002]
[1773489728360,9.08878274,86.911,86.866,4.95412002]
[1773489728553,10.353,86.914,86.866,4.95412002]
[1773489728759,9.09077776,86.913,86.866,4.95412002]
[1773489728960,9.09077776,86.912,86.866,4.95412002]
[1773489729160,9.09077776,86.911,86.866,4.95412002]
[1773489729356,10.353,86.914,86.866,4.95412002]
[1773489729552,9.09076825,86.913,86.866,4.95412002]
[1773489729756,9.09076825,86.912,86.866,4.95412002]
[1773489729962,9.09076825,86.911,86.866,4.95412002]
[1773489730261,3.12794555,86.92,86.866,4.95412002]
[1773489730461,9.09078344,86.919,86.87,4.97133675]
[1773489730662,9.09078344,86.918,86.87,4.97133675]
[1773489730962,9.09078344,86.917,86.87,4.97133675]
[1773489731161,9.09078344,86.916,86.87,4.97133675]
[1773489731462,9.09078344,86.915,86.87,4.97133675]
[1773489731654,9.09078344,86.914,86.87,4.97133675]
[1773489731958,9.09078344,86.913,86.87,4.97133675]
[1773489732163,9.09078344,86.912,86.87,4.97133675]
[1773489732360,9.09078344,86.911,86.87,4.97133675]
[1773489732662,9.09078344,86.91,86.87,4.97133675]
[1773489732862,3.12794555,86.92,86.87,4.97133675]
[1773489733061,9.09087372,86.919,86.87,4.97133675]
[1773489733262,9.09087372,86.918,86.87,4.97133675]
[1773489733462,9.09087372,86.917,86.87,4.97133675]
[1773489733662,9.09087372,86.916,86.87,4.97133675]
[1773489733864,9.09087372,86.915,86.87,4.97133675]
[1773489734162,9.09087372,86.914,86.87,4.97133675]
[1773489734363,9.09087372,86.913,86.87,4.97133675]
[1773489734560,9.09087372,86.912,86.87,4.97133675]
[1773489734761,9.09087372,86.911,86.87,4.97133675]
[1773489734967,9.09087372,86.91,86.87,4.97133675]
[1773489735170,3.12794555,86.92,86.871,10.358]
[1773489735369,9.0909141,86.919,86.871,15.33801385]
[1773489735668,9.0909141,86.918,86.872,4.98001385]
[1773489735870,9.0909141,86.917,86.872,4.98001385]
[1773489736070,3.12794555,86.94,86.894,4.9801721]
[1773489736366,9.10622692,86.939,86.894,4.9801721]
[1773489736669,3.12794555,86.93,86.894,4.9801721]
[1773489736971,9.10622692,86.929,86.894,4.9801721]
[1773489737171,9.10622692,86.928,86.881,4.97901524]
[1773489737371,3.12794555,86.91,86.861,4.97901524]
[1773489737864,10.68702759,86.936,86.861,4.97901524]
[1773489738065,3.12794555,86.92,86.861,4.97901524]
[1773489738371,9.10496457,86.919,86.861,4.97901524]
[1773489738671,9.10496457,86.918,86.871,4.98396937]
[1773489738872,3.12794555,86.92,86.871,4.98396937]
[1773489739171,9.10468995,86.919,86.871,4.98396937]
[1773489739366,9.10468995,86.918,86.871,4.98396937]
[1773489739571,3.12794555,86.92,86.871,4.98396937]
[1773489739770,9.10443759,86.919,86.871,4.98396937]
[1773489739965,9.10443759,86.918,86.871,4.98396937]
[1773489740265,3.12794555,86.92,86.871,4.98396937]
[1773489740470,9.10433579,86.919,86.871,4.98396937]
[1773489740670,9.10433579,86.918,86.871,4.98396937]
[1773489740874,9.10433579,86.917,86.871,4.98396937]
[1773489741071,9.10433579,86.916,86.871,4.98396937]
[1773489741370,9.10433579,86.915,86.871,4.98396937]
[1773489741568,3.12794555,86.91,86.871,4.98396937]
[1773489742470,10.351,86.931,86.874,4.97495672]
[1773489742671,3.12794555,86.92,86.874,4.97495672]
[1773489742871,9.10430592,86.919,86.874,4.97495672]
[1773489743072,9.10430592,86.918,86.876,4.97557649]
[1773489743274,3.12794555,86.93,86.876,4.97557649]
[1773489743572,9.1035302,86.929,86.876,4.97557649]
[1773489743773,9.1035302,86.928,86.876,4.97557649]
[1773489744070,9.1035302,86.927,86.876,4.97557649]
[1773489744266,9.1035302,86.926,86.876,4.97557649]
[1773489744472,9.1035302,86.925,86.876,4.97557649]
[1773489744673,3.12794555,86.92,86.876,4.97557649]
[1773489745670,3.12794555,86.92,86.878,15.35225804]
[1773489746765,3.12794555,86.92,86.879,4.99499786]
[1773489747972,3.12794555,86.92,86.83,34.53]
[1773489747973,3.12794555,86.89,86.853,4.99493336]
[1773489748170,3.12794555,86.9,86.853,4.99493336]
[1773489748371,9.10207576,86.899,86.853,4.99493336]
[1773489748569,3.12794555,86.9,86.855,4.99493336]
[1773489749668,3.12794555,86.9,86.84,3.12794555]
[1773489749669,3.12794555,86.9,86.857,4.98062703]
[1773489750872,3.12794555,86.9,86.859,4.93201038]
[1773489760574,3.12794555,86.89,86.859,4.93201038]
[1773489762871,3.12794555,86.88,86.847,4.90280657]
[1773489763374,3.12794555,86.89,86.847,4.90280657]
[1773489764484,14.38886832,86.931,86.82,36.24]
[1773489764485,10.68702759,86.924,86.861,4.90290257]
[1773489764780,3.12794555,86.91,86.861,4.90290257]
[1773489764983,3.12794555,86.9,86.861,4.90290257]
[1773489765682,3.12925423,86.9,86.861,4.90290257]
[1773489768379,10.355,86.902,86.861,4.90290257]
[1773489768582,3.12925423,86.9,86.861,4.90290257]
[1773489770780,36.24,86.933,86.829,36.24]
[1773489770781,4.01243527,86.926,86.872,3.91557499]
[1773489770985,3.12925423,86.92,86.872,3.91557499]
[1773489771178,4.01243527,86.919,86.872,3.91557499]
[1773489773381,3.81432246,86.939,86.89,3.12925423]
[1773489773580,6.23996011,86.971,86.9,3.12925423]
[1773489773883,10.346,86.969,86.904,10.354]
[1773489774082,3.12925423,86.96,86.91,3.12925423]
[1773489774286,3.12925423,86.96,86.904,10.354]
[1773489774486,9.34335806,86.96,86.904,10.354]
[1773489775686,19.69135806,86.96,86.904,10.354]
[1773489775883,6.28192886,86.959,86.904,10.354]
[1773489776890,6.28192731,86.978,86.93,3.12925423]
[1773489777278,6.28192731,86.978,86.92,3.12925423]
[1773489777889,6.28192731,86.978,86.92,13.48125423]
[1773489778286,6.28192731,86.978,86.93,3.12925423]
[1773489779993,6.37179511,86.959,86.9,3.12925423]
[1773489780381,6.37179511,86.959,86.9,13.48425423]
[1773489780584,6.37179511,86.949,86.9,10.355]
[1773489780786,6.37179511,86.949,86.9,13.48425423]
[1773489781086,6.38385464,86.96,86.9,13.48425423]
[1773489781292,6.38385464,86.96,86.913,10.353]
[1773489782192,6.38385464,86.96,86.91,3.12925423]
[1773489782691,6.38817179,86.959,86.902,10.354]
[1773489783294,10.346,86.972,86.874,36.22]
[1773489783295,6.38837451,86.949,86.892,10.356]
[1773489784182,6.38837451,86.949,86.9,3.12925423]
[1773489784793,3.12925423,86.96,86.901,10.354]
[1773489785197,6.3927795,86.959,86.901,10.354]
[1773489785393,6.3927795,86.959,86.911,10.353]
[1773489787891,6.3927795,86.959,86.92,10.352]
[1773489788094,6.36572775,86.969,86.92,10.352]
[1773489792398,6.36823989,86.982,86.938,10.35]
[1773489792600,6.36823989,86.979,86.92,3.12925423]
[1773489793202,6.36823989,86.979,86.928,10.351]
[1773489794100,6.36823989,86.979,86.932,10.351]
[1773489803903,6.36823989,86.979,86.94,10.35]
[1773489805811,6.40341923,86.999,86.94,3.12925423]